fUSD/lending_fUSD_20260123
["ID","MTS","AMOUNT","RATE_DAILY","PERIOD"]
[403094371,1769152240660,-903.31406717,0.00016658,2]
[403094372,1769152240673,-5983.23150261,0.00016663,2]
[403094373,1769152240685,-206.21,0.00016675,2]
[403094374,1769152240696,-352.22,0.00016691,2]
[403094375,1769152240706,-193.45591522,0.00016753,2]
[403094376,1769152240717,-289.39847933,0.00016753,2]
[403094377,1769152240727,-391.5648,0.00016753,2]
[403094378,1769152240737,-465.0,0.00016784,2]
[403094379,1769152240746,-173.28,0.00016799,2]
[403094380,1769152240756,-5983.23150261,0.0001684,2]
[403094381,1769152240765,-300.0,0.00016889,2]
[403094382,1769152240774,-200.0,0.00016889,2]
[403094384,1769152240783,-300.0,0.00016889,2]
[403094386,1769152240792,-250.0,0.00016889,2]
[403094387,1769152240802,-2500.0,0.00016889,2]
[403094388,1769152240811,-903.31406717,0.00016907,2]
[403094389,1769152240820,-637.76004414,0.00016942,2]
[403094390,1769152240830,-250.0,0.00017,2]
[403094391,1769152240839,-5983.23150261,0.00017017,2]
[403094394,1769152240852,-420.0,0.00017026,2]
[403094395,1769152240861,-612.51,0.00017041,2]
[403094396,1769152240871,-558.11,0.00017041,2]
[403094397,1769152240880,-612.51,0.00017041,2]
[403094398,1769152240889,-484.37,0.00017041,2]
[403094399,1769152240899,-612.51,0.00017041,2]
[403094400,1769152240908,-484.37,0.00017041,2]
[403094401,1769152240918,-484.37,0.00017041,2]
[403094402,1769152240927,-484.37,0.00017041,2]
[403094403,1769152240940,-273.0,0.00017081,2]
[403094404,1769152240950,-500.0,0.00017095,2]
[403094405,1769152240959,-322.6107,0.00017099,2]
[403094406,1769152240968,-3210.0,0.00017099,2]
[403094407,1769152240979,-854.2589148,0.00017099,2]
[403094408,1769152240988,-500.0,0.00017099,2]
[403094409,1769152240997,-500.0,0.00017099,2]
[403094410,1769152241008,-250.0,0.00017099,2]
[403094411,1769152241017,-500.0,0.00017099,2]
[403094412,1769152241027,-250.0,0.00017099,2]
[403094413,1769152241036,-500.0,0.00017099,2]
[403094414,1769152241046,-250.0,0.00017099,2]
[403094415,1769152241059,-500.0,0.00017099,2]
[403094416,1769152241068,-250.0,0.00017099,2]
[403094417,1769152241077,-1276.0,0.00017099,2]
[403094418,1769152241086,-500.0,0.00017099,2]
[403094419,1769152241096,-500.0,0.00017099,2]
[403094420,1769152241105,-250.0,0.00017099,2]
[403094421,1769152241114,-500.0,0.00017099,2]
[403094422,1769152241123,-553.76777094,0.00017099,2]
[403094423,1769152241132,-250.0,0.00017099,2]
[403094424,1769152241141,-422.25325814,0.00017099,2]
[403094425,1769152241150,-500.0,0.00017099,2]
[403094426,1769152241159,-250.0,0.00017099,2]
[403094427,1769152241168,-500.0,0.00017099,2]
[403094428,1769152241177,-500.0,0.00017099,2]
[403094429,1769152241186,-264.58100007,0.00017099,2]
[403094430,1769152241195,-500.0,0.00017099,2]
[403094431,1769152241204,-500.0,0.00017099,2]
[403094432,1769152241213,-500.0,0.00017099,2]
[403094434,1769152241223,-500.0,0.00017099,2]
[403094435,1769152241232,-500.0,0.00017099,2]
[403094436,1769152241245,-187.78006525,0.00017099,2]
[403094437,1769152241254,-500.0,0.00017099,2]
[403094438,1769152241264,-500.0,0.00017099,2]
[403094439,1769152241273,-500.0,0.00017099,2]
[403094440,1769152241282,-500.0,0.00017099,2]
[403094441,1769152241292,-500.0,0.00017099,2]
[403094442,1769152241301,-500.0,0.00017099,2]
[403094443,1769152241310,-500.0,0.00017099,2]
[403094444,1769152241319,-151.0,0.00017099,2]
[403094445,1769152241328,-151.0,0.00017099,2]
[403094446,1769152241338,-151.0,0.00017099,2]
[403094447,1769152241347,-151.0,0.00017099,2]
[403094448,1769152241356,-151.0,0.00017099,2]
[403094449,1769152241365,-151.0,0.00017099,2]
[403094450,1769152241374,-151.0,0.00017099,2]
[403094451,1769152241383,-151.0,0.00017099,2]
[403094452,1769152241392,-151.0,0.00017099,2]
[403094453,1769152241402,-151.0,0.00017099,2]
[403094454,1769152241413,-151.0,0.00017099,2]
[403094455,1769152241423,-500.0,0.00017099,2]
[403094456,1769152241432,-500.0,0.00017099,2]
[403094457,1769152241446,-500.0,0.00017099,2]
[403094458,1769152241455,-500.0,0.00017099,2]
[403094459,1769152241466,-500.0,0.00017099,2]
[403094460,1769152241476,-500.0,0.00017099,2]
[403094461,1769152241486,-500.0,0.00017099,2]
[403094462,1769152241495,-500.0,0.00017099,2]
[403094463,1769152241504,-500.0,0.00017099,2]
[403094464,1769152241513,-500.0,0.00017099,2]
[403094465,1769152241522,-500.0,0.00017099,2]
[403094466,1769152241531,-1680.0,0.00017112,2]
[403094467,1769152241540,-200.0,0.00017143,2]
[403094468,1769152241549,-903.31406717,0.00017155,2]
[403094469,1769152241560,-585.69,0.00017178,2]
[403094470,1769152241570,-371.15,0.00017178,2]
[403094471,1769152241579,-1230.49,0.00017178,2]
[403094472,1769152241589,-180.99,0.00017178,2]
[403094473,1769152241600,-150.0,0.00017178,2]
[403094474,1769152241610,-468.39,0.00017178,2]
[403094475,1769152241620,-1230.49,0.00017178,2]
[403094476,1769152241628,-558.47,0.00017178,2]
[403094477,1769152241639,-468.39,0.00017178,2]
[403094478,1769152241649,-558.47,0.00017178,2]
[403094479,1769152241658,-1230.49,0.00017178,2]
[403094480,1769152241668,-150.0,0.00017178,2]
[403094481,1769152241678,-468.39,0.00017178,2]
[403094482,1769152241687,-1230.49,0.00017178,2]
[403094483,1769152241697,-558.47,0.00017178,2]
[403094484,1769152241706,-468.39,0.00017178,2]
[403094485,1769152241715,-158.67,0.00017178,2]
[403094486,1769152241724,-150.0,0.00017178,2]
[403094487,1769152241734,-468.39,0.00017178,2]
[403094488,1769152241743,-5983.23150261,0.00017193,2]
[403094489,1769152241752,-156.95,0.00017204,2]
[403094490,1769152241762,-200.0,0.00017234,2]
[403094491,1769152241771,-150.0,0.0001726,2]
[403094492,1769152241780,-1000.0,0.0001726,2]
[403094493,1769152241790,-637.76004414,0.00017261,2]
[403094494,1769152241799,-4829.0,0.00017352,2]
[403094495,1769152241808,-6567.0,0.00017352,2]
[403094496,1769152241817,-2441.0,0.00017352,2]
[403094497,1769152241836,-5983.23150261,0.0001737,2]
[403094498,1769152241847,-500.0,0.00017387,2]
[403094499,1769152241856,-6000.0,0.000174,6]
[403094500,1769152241866,-903.31406717,0.00017403,2]
[403094501,1769152241875,-150.0,0.00017452,2]
[403094502,1769152241884,-150.0,0.00017452,2]
[403094503,1769152241897,-150.0,0.00017452,2]
[403094504,1769152241907,-285.67,0.00017457,2]
[403094505,1769152241916,-8000.0,0.000175,6]
[403094506,1769152241926,-1000.0,0.00017534,2]
[403094507,1769152241939,-5983.23150261,0.00017547,2]
[403094508,1769152241949,-560190.052805,0.00017555,2]
[403094509,1769152241959,-637.76004414,0.00017581,2]
[403094510,1769152241968,-10100.0,0.000176,6]
[403094511,1769152241978,-1343.632,0.00017616,2]
[403094512,1769152241987,-615.674,0.00017616,2]
[403094513,1769152241998,-3475.0,0.00017616,2]
[403094514,1769152242008,-184.0,0.00017616,2]
[403094515,1769152242020,-1269.0,0.00017616,2]
[403094516,1769152242033,-916.0,0.00017616,2]
[403094517,1769152242044,-1203.0,0.00017616,2]
[403094518,1769152242055,-471.0,0.00017627,2]
[403094519,1769152242066,-885.86649465,0.00017647,2]
[403094520,1769152242077,-903.31406717,0.00017652,2]
[403094521,1769152242087,-296.63086669,0.00017699,2]
[403094522,1769152242099,-150.0,0.00017699,2]
[403094523,1769152242110,-150.0,0.00017699,2]
[403094524,1769152242121,-150.0,0.00017699,2]
[403094525,1769152242132,-250.0,0.00017699,2]
[403094526,1769152242144,-500.0,0.00017699,2]
[403094527,1769152242155,-150.0,0.00017699,2]
[403094528,1769152242166,-500.0,0.00017699,2]
[403094529,1769152242176,-1000.0,0.000177,2]
[403094530,1769152242187,-2000.0,0.000177,6]
[403094531,1769152242196,-471.0,0.00017708,2]
[403094532,1769152242207,-5983.23150261,0.00017723,2]
[403094533,1769152242217,-150.0,0.00017754,2]
[403094534,1769152242227,-150.0,0.00017754,2]
[403094535,1769152242237,-500.0,0.00017754,2]
[403094536,1769152242247,-500.0,0.00017754,2]
[403094537,1769152242258,-200.0,0.00017762,2]
[403094538,1769152242268,-200.0,0.00017773,2]
[403094539,1769152242278,-500.0,0.00017799,2]
[403094540,1769152242289,-500.0,0.00017799,3]
[403094541,1769152242299,-500.0,0.00017799,4]
[403094542,1769152242309,-500.0,0.00017799,5]
[403094543,1769152242319,-1000.0,0.000178,2]
[403094544,1769152242330,-2000.0,0.000178,6]
[403094545,1769152242340,-250.0,0.00017808,2]
[403094546,1769152242350,-1000.0,0.00017808,2]
[403094547,1769152242363,-150.0,0.00017809,2]
[403094548,1769152242374,-200.0,0.00017809,2]
[403094549,1769152242383,-200.0,0.00017809,2]
[403094550,1769152242393,-500.0,0.00017809,2]
[403094551,1769152242404,-452.0878,0.0001782,2]
[403094552,1769152242413,-452.08781,0.0001782,2]
[403094553,1769152242424,-200.0,0.00017855,2]
[403094554,1769152242434,-200.0,0.00017856,2]
[403094555,1769152242444,-150.0,0.00017863,2]
[403094556,1769152242455,-500.0,0.00017863,2]
[403094557,1769152242466,-471.0,0.00017866,2]
[403094558,1769152242476,-156.95,0.00017885,2]
[403094559,1769152242487,-500.0,0.00017899,6]
[403094560,1769152242497,-167.52503584,0.000179,2]
[403094561,1769152242507,-10000.0,0.000179,2]
[403094562,1769152242518,-255.33658603,0.000179,3]
[403094563,1769152242528,-1376.02281178,0.000179,2]
[403094564,1769152242539,-903.31406717,0.000179,2]
[403094565,1769152242550,-2000.0,0.000179,6]
[403094566,1769152242560,-637.76004414,0.000179,2]
[403094567,1769152242571,-1000.0,0.000179,2]
[403094568,1769152242581,-343.01283079,0.000179,2]
[403094569,1769152242591,-745.77768029,0.000179,2]
[403094570,1769152242602,-1768.24358172,0.000179,2]
[403094571,1769152242613,-5983.23150261,0.000179,2]
[403094572,1769152242624,-236.48142665,0.00017918,2]
[403094573,1769152242635,-500.0,0.00017918,2]
[403094574,1769152242644,-3068.2,0.00017967,2]
[403094575,1769152242655,-500.0,0.00017973,2]
[403094576,1769152242666,-500.0,0.00017973,2]
[403094577,1769152242678,-150.0,0.00017973,2]
[403094578,1769152242688,-60839.6244793,0.00017996,2]
[403094579,1769152242699,-93624.8551359,0.00017996,2]
[403094580,1769152242709,-1612.6604214,0.00017996,2]
[403094581,1769152242719,-320.4558063,0.00017996,2]
[403094582,1769152242731,-151.0,0.00017997,2]
[403094583,1769152242741,-500.0,0.00017998,7]
[403094584,1769152242751,-4075.0,0.00017999,2]
[403094585,1769152242761,-150.0,0.00017999,2]
[403094586,1769152242772,-219.50243608,0.00017999,2]
[403094587,1769152242783,-2634.39228465,0.00017999,2]
[403094588,1769152242793,-689.3219085,0.00017999,2]
[403094589,1769152242803,-300.0,0.00017999,2]
[403094590,1769152242814,-300.0,0.00017999,2]
[403094591,1769152242824,-500.0,0.00017999,8]
[403094592,1769152242834,-500.0,0.00017999,9]
[403094593,1769152242844,-500.0,0.00017999,10]
[403094594,1769152242855,-187.44,0.00017999,11]
[403094595,1769152242865,-6358984.71901615,0.00018,2]
[403094596,1769152243014,-158.11452304,0.00018,2]
[403094597,1769152243054,-17033.45343382,0.00018,2]
[403094663,1769152246439,-151.0,0.00016064,2]
[403094664,1769152246451,-1026.81320539,0.000169,2]
[403094712,1769152671632,-167.942,0.00015256,2]
[403094713,1769152671657,-1066.049,0.00015256,2]
[403094714,1769152671683,-1200.0,0.00015466,2]
[403094715,1769152671706,-589.41452724,0.00015467,2]
[403094716,1769152671732,-398.60002764,0.00015467,2]
[403094717,1769152671757,-6172.56943977,0.00015467,2]
[403094718,1769152671782,-300.0,0.00015566,2]
[403094719,1769152671876,-500.0,0.00015566,2]
[403094720,1769152671900,-557.02336865,0.00015566,2]
[403094721,1769152671923,-164.48894801,0.00015566,2]
[403094722,1769152671946,-500.0,0.00015566,2]
[403094723,1769152671968,-305.84630394,0.00015566,2]
[403094724,1769152671995,-203.37152194,0.00015566,2]
[403094725,1769152672019,-500.0,0.00015566,2]
[403094726,1769152672044,-181.1010514,0.00015566,2]
[403094727,1769152672072,-500.0,0.00015566,2]
[403094728,1769152672101,-500.0,0.00015566,2]
[403094729,1769152672131,-484.12360075,0.00015566,2]
[403094730,1769152672159,-164.9026223,0.00015566,2]
[403094731,1769152672192,-76144.56758836,0.00015567,2]
[403094738,1769152935142,572.8861784,0.000176,30]
[403094813,1769153165442,3414.28,0.00013035,2]
[403094920,1769153408441,166.66,0.00014091,2]
[403094921,1769153408644,166.66,0.00014388,2]
[403094922,1769153408841,166.66,0.00014684,2]
[403094940,1769153432685,-166.66,0.00014981,2]
[403094942,1769153432694,-194.80786234,0.0001512,2]
[403094944,1769153432705,-81.19213766,0.0001512,2]
[403094946,1769153432714,-150.0,0.0001512,2]
[403094948,1769153432723,-250.0,0.00015121,2]
[403094949,1769153432732,-77.08325006,0.00015122,2]
[403094951,1769153438819,-440.09662226,0.00015122,2]
[403094952,1769153438863,-690.03272605,0.00015122,2]
[403094953,1769153438907,-236.86740163,0.00015122,2]
[403094954,1769153438917,-852.839,0.00015256,2]
[403094955,1769153438926,-166.66,0.00015278,2]
[403094956,1769153438935,-1200.0,0.00015372,2]
[403094957,1769153438944,-300.0,0.00015372,2]
[403094958,1769153438953,-300.0,0.00015372,2]
[403094959,1769153438962,-507.68701346,0.00015373,2]
[403094960,1769153438971,-500.0,0.00015373,2]
[403094961,1769153438980,-542.62641101,0.00015373,2]
[403094962,1769153438989,-500.0,0.00015373,2]
[403094963,1769153438998,-300.0,0.00015466,2]
[403094964,1769153439008,-500.0,0.00015466,2]
[403094966,1769153439017,-500.0,0.00015466,2]
[403094968,1769153439030,-500.0,0.00015466,2]
[403094970,1769153439039,-500.0,0.00015466,2]
[403094972,1769153439049,-500.0,0.00015466,2]
[403094973,1769153439063,-500.0,0.00015466,2]
[403094975,1769153439072,-500.0,0.00015466,2]
[403094977,1769153439081,-500.0,0.00015466,2]
[403094979,1769153439090,-500.0,0.00015466,2]
[403094981,1769153439100,-500.0,0.00015466,2]
[403094983,1769153439109,-443.72453092,0.00015466,2]
[403094986,1769153439121,-56.27546908,0.00015466,2]
[403094988,1769153439130,-312.01438425,0.00015466,2]
[403094990,1769153439142,-187.98561575,0.00015466,2]
[403094992,1769153439151,-500.0,0.00015466,2]
[403094994,1769153439160,-500.0,0.00015466,2]
[403094996,1769153439170,-500.0,0.00015466,2]
[403094998,1769153439179,-500.0,0.00015466,2]
[403095000,1769153439188,-500.0,0.00015466,2]
[403095002,1769153439197,-500.0,0.00015466,2]
[403095004,1769153439206,-500.0,0.00015466,2]
[403095006,1769153439220,-500.0,0.00015466,2]
[403095008,1769153439229,-500.0,0.00015466,2]
[403095010,1769153439239,-500.0,0.00015466,2]
[403095012,1769153439248,-500.0,0.00015466,2]
[403095014,1769153439257,-500.0,0.00015466,2]
[403095016,1769153439267,-500.0,0.00015466,2]
[403095019,1769153439277,-500.0,0.00015466,2]
[403095020,1769153439286,-308.73400195,0.00015466,2]
[403095027,1769153439337,-191.26599805,0.00015466,2]
[403095029,1769153439346,-500.0,0.00015466,2]
[403095031,1769153439355,-500.0,0.00015466,2]
[403095033,1769153439364,-500.0,0.00015466,2]
[403095035,1769153439373,-202.21400195,0.00015466,2]
[403095037,1769153439385,-297.78599805,0.00015466,2]
[403095039,1769153439394,-555.60668327,0.00015466,2]
[403095041,1769153439403,-500.0,0.00015466,2]
[403095044,1769153439415,-500.0,0.00015466,2]
[403095046,1769153439424,-155.55740922,0.00015466,2]
[403095080,1769153439736,-344.44259078,0.00015466,2]
[403095082,1769153439745,-103.86160921,0.00015466,2]
[403095127,1769153440850,-396.13839079,0.00015466,2]
[403095128,1769153440860,-500.0,0.00015466,2]
[403095129,1769153440869,-500.0,0.00015466,2]
[403095130,1769153440878,-500.0,0.00015466,2]
[403095131,1769153440888,-500.0,0.00015466,2]
[403095132,1769153440897,-500.0,0.00015466,2]
[403095133,1769153440906,-500.0,0.00015466,2]
[403095134,1769153440915,-500.0,0.00015466,2]
[403095135,1769153440925,-500.0,0.00015466,2]
[403095136,1769153440934,-500.0,0.00015466,2]
[403095137,1769153440943,-500.0,0.00015466,2]
[403095138,1769153440953,-500.0,0.00015466,2]
[403095139,1769153440962,-500.0,0.00015466,2]
[403095140,1769153440973,-500.0,0.00015466,2]
[403095141,1769153440984,-500.0,0.00015466,2]
[403095142,1769153440993,-500.0,0.00015466,2]
[403095143,1769153441002,-500.0,0.00015466,2]
[403095144,1769153441011,-500.0,0.00015466,2]
[403095145,1769153441021,-500.0,0.00015466,2]
[403095147,1769153441031,-205.56066833,0.00015466,2]
[403095148,1769153441040,-500.0,0.00015466,2]
[403095149,1769153441051,-500.0,0.00015466,2]
[403095150,1769153441060,-500.0,0.00015466,2]
[403095151,1769153441070,-500.0,0.00015466,2]
[403095152,1769153441079,-500.0,0.00015466,2]
[403095153,1769153441088,-500.0,0.00015466,2]
[403095154,1769153441097,-500.0,0.00015466,2]
[403095155,1769153441107,-500.0,0.00015466,2]
[403095156,1769153441115,-500.0,0.00015466,2]
[403095157,1769153441124,-500.0,0.00015466,2]
[403095158,1769153441134,-500.0,0.00015466,2]
[403095159,1769153441143,-500.0,0.00015466,2]
[403095160,1769153441153,-500.0,0.00015466,2]
[403095161,1769153441162,-500.0,0.00015466,2]
[403095162,1769153441172,-500.0,0.00015466,2]
[403095163,1769153441181,-500.0,0.00015466,2]
[403095164,1769153441191,-500.0,0.00015466,2]
[403095165,1769153441200,-500.0,0.00015466,2]
[403095166,1769153441210,-500.0,0.00015466,2]
[403095167,1769153441219,-500.0,0.00015466,2]
[403095168,1769153441228,-500.0,0.00015466,2]
[403095169,1769153441238,-500.0,0.00015466,2]
[403095170,1769153441247,-500.0,0.00015466,2]
[403095171,1769153441256,-500.0,0.00015466,2]
[403095172,1769153441266,-500.0,0.00015466,2]
[403095173,1769153441275,-244.7971,0.00015467,2]
[403095174,1769153441284,-2500.0,0.00015467,2]
[403095175,1769153441293,-237.0033,0.00015467,2]
[403095176,1769153441302,-19305.494,0.00015467,2]
[403095177,1769153441313,-1243.854,0.00015467,2]
[403095178,1769153441322,-6715.4939,0.00015467,2]
[403095179,1769153441331,-6855.44292991,0.00015556,2]
[403095180,1769153441341,-1047.06319096,0.00015566,5]
[403095181,1769153441350,-500.0,0.00015566,2]
[403095182,1769153441359,-500.0,0.00015566,2]
[403095183,1769153441368,-500.0,0.00015566,2]
[403095184,1769153441377,-1000.0,0.00015567,2]
[403095185,1769153441386,-166.66,0.00015574,2]
[403095186,1769153441395,-500.0,0.00015666,2]
[403095187,1769153441404,-500.0,0.00015666,3]
[403095188,1769153441413,-500.0,0.00015666,4]
[403095189,1769153441422,-500.0,0.00015666,5]
[403095190,1769153441431,-157.74,0.00015725,2]
[403095191,1769153441440,-151.31,0.0001578,2]
[403095192,1769153441449,-1700.0,0.000159,5]
[403095193,1769153441459,-1000.0,0.00015921,2]
[403095194,1769153441468,-1013.55704022,0.00015921,2]
[403095195,1769153441477,-1651.42,0.00016,2]
[403095196,1769153441486,-466726.00929906,0.00016,4]
[403095197,1769153441495,-641.31,0.00016056,2]
[403095198,1769153441504,-500.0,0.00016073,2]
[403095199,1769153441513,-500.0,0.00016073,2]
[403095200,1769153441522,-500.0,0.00016073,2]
[403095201,1769153441531,-500.0,0.00016073,2]
[403095202,1769153441540,-500.0,0.00016073,2]
[403095203,1769153441553,-484.37,0.00016082,2]
[403095204,1769153441563,-484.37,0.00016082,2]
[403095205,1769153441572,-200.0,0.00016141,2]
[403095206,1769153441581,-4331.92,0.00016258,2]
[403095207,1769153441591,-909.23931542,0.00016297,2]
[403095208,1769153441601,-439.23,0.0001635,2]
[403095209,1769153441610,-771.24,0.00016356,2]
[403095210,1769153441620,-150.0,0.00016356,2]
[403095211,1769153441628,-391.75,0.00016384,2]
[403095212,1769153441638,-244.95700534,0.00016438,2]
[403095213,1769153441647,-150.3550107,0.00016438,2]
[403095214,1769153441655,-1015.34971137,0.00016468,2]
[403095215,1769153441664,-410.87429367,0.0001651,2]
[403095216,1769153441673,-220.94,0.00016578,2]
[403095218,1769153441682,-510.0,0.00016595,2]
[403095219,1769153441691,-171.98325058,0.00016621,2]
[403095220,1769153441701,-250.0,0.00016632,2]
[403095221,1769153441710,-250.0,0.00016632,2]
[403095222,1769153441719,-195.0,0.00016632,2]
[403095223,1769153441728,-193.0,0.00016782,2]
[403095224,1769153441738,-300.0,0.00016782,2]
[403095225,1769153441747,-2500.0,0.00016782,2]
[403095226,1769153441756,-195.0,0.00016782,2]
[403095227,1769153441766,-420.0,0.00016817,2]
[403095228,1769153441775,-410.87429367,0.00016857,2]
[403095229,1769153441784,-641.31,0.00016859,2]
[403095230,1769153441793,-264.0,0.00016899,2]
[403095231,1769153441802,-397.32922139,0.000169,2]
[403095232,1769153441811,-1680.0,0.00016902,2]
[403095233,1769153441820,-150.0,0.00016904,2]
[403095234,1769153441829,-484.37,0.00016941,2]
[403095235,1769153441839,-439.23,0.00016963,2]
[403095236,1769153441848,-250.0,0.00017,2]
[403095237,1769153441856,-487.0,0.00017004,2]
[403095238,1769153441865,-487.0,0.00017004,2]
[403095239,1769153441875,-487.0,0.00017004,2]
[403095240,1769153441883,-487.0,0.00017004,2]
[403095241,1769153441893,-487.0,0.00017004,2]
[403095242,1769153441901,-487.0,0.00017004,2]
[403095243,1769153441911,-487.0,0.00017004,2]
[403095244,1769153441920,-487.0,0.00017004,2]
[403095245,1769153441929,-487.0,0.00017004,2]
[403095246,1769153441938,-487.0,0.00017004,2]
[403095247,1769153441947,-487.0,0.00017004,2]
[403095248,1769153441956,-487.0,0.00017004,2]
[403095249,1769153442231,-487.0,0.00017004,2]
[403095250,1769153442246,-832.76,0.00017004,2]
[403095251,1769153442255,-500.0,0.00017035,2]
[403095252,1769153442265,-484.37,0.00017041,2]
[403095253,1769153442275,-484.37,0.00017041,2]
[403095254,1769153442285,-484.37,0.00017041,2]
[403095255,1769153442294,-484.37,0.00017041,2]
[403095256,1769153442306,-484.37,0.00017041,2]
[403095257,1769153442316,-484.37,0.00017041,2]
[403095258,1769153442326,-484.37,0.00017041,2]
[403095259,1769153442337,-484.37,0.00017041,2]
[403095260,1769153442346,-484.37,0.00017041,2]
[403095261,1769153442355,-484.37,0.00017041,2]
[403095262,1769153442364,-484.37,0.00017041,2]
[403095263,1769153442373,-484.37,0.00017041,2]
[403095264,1769153442383,-484.37,0.00017041,2]
[403095265,1769153442392,-484.37,0.00017041,2]
[403095266,1769153442401,-484.37,0.00017041,2]
[403095267,1769153442410,-484.37,0.00017041,2]
[403095268,1769153442419,-558.11,0.00017041,2]
[403095269,1769153442429,-150.0,0.00017078,2]
[403095270,1769153442438,-214.09241276,0.00017088,2]
[403095271,1769153442447,-5555.31249573,0.00017089,2]
[403095272,1769153442456,-187.78006525,0.00017099,2]
[403095273,1769153442466,-587.17962671,0.00017099,2]
[403095274,1769153442475,-500.0,0.00017099,2]
[403095275,1769153442485,-500.0,0.00017099,2]
[403095276,1769153442494,-500.0,0.00017099,2]
[403095277,1769153442503,-250.0,0.00017099,2]
[403095278,1769153442513,-500.0,0.00017099,2]
[403095279,1769153442522,-250.0,0.00017099,2]
[403095280,1769153442531,-500.0,0.00017099,2]
[403095281,1769153442540,-250.0,0.00017099,2]
[403095282,1769153442554,-500.0,0.00017099,2]
[403095283,1769153442564,-250.0,0.00017099,2]
[403095284,1769153442573,-250.0,0.00017099,2]
[403095285,1769153442582,-500.0,0.00017099,2]
[403095286,1769153442592,-250.0,0.00017099,2]
[403095287,1769153442601,-500.0,0.00017099,2]
[403095288,1769153442611,-250.0,0.00017099,2]
[403095289,1769153442620,-3210.0,0.00017099,2]
[403095290,1769153442632,-500.0,0.00017099,2]
[403095291,1769153442642,-854.2589148,0.00017099,2]
[403095292,1769153442651,-264.58100007,0.00017099,2]
[403095293,1769153442660,-500.0,0.00017099,2]
[403095294,1769153442669,-500.0,0.00017099,2]
[403095295,1769153442677,-500.0,0.00017099,2]
[403095296,1769153442686,-553.76777094,0.00017099,2]
[403095297,1769153442695,-1276.0,0.00017099,2]
[403095298,1769153442704,-322.6107,0.00017099,2]
[403095299,1769153442713,-422.25325814,0.00017099,2]
[403095300,1769153442722,-500.0,0.00017099,2]
[403095301,1769153442731,-500.0,0.00017099,2]
[403095302,1769153442739,-500.0,0.00017099,2]
[403095303,1769153442749,-500.0,0.00017099,2]
[403095304,1769153442757,-500.0,0.00017099,2]
[403095305,1769153442767,-500.0,0.00017099,2]
[403095306,1769153442775,-500.0,0.00017099,2]
[403095307,1769153442784,-500.0,0.00017099,2]
[403095308,1769153442793,-500.0,0.00017099,2]
[403095309,1769153442802,-500.0,0.00017099,2]
[403095310,1769153442811,-500.0,0.00017099,2]
[403095311,1769153442820,-151.0,0.00017099,2]
[403095312,1769153442829,-500.0,0.00017099,2]
[403095313,1769153442838,-500.0,0.00017099,2]
[403095314,1769153442848,-151.0,0.00017099,2]
[403095315,1769153442859,-500.0,0.00017099,2]
[403095316,1769153442870,-500.0,0.00017099,2]
[403095317,1769153442880,-151.0,0.00017099,2]
[403095318,1769153442891,-500.0,0.00017099,2]
[403095319,1769153442902,-500.0,0.00017099,2]